bitfinex-derivatives/quotes_SOLF0:USTF0_20250929
["timestamp","ask_amount","ask_price","bid_price","bid_amount"]
[1759157626662,123.56,212.3,212.21,4.2381]
[1759157626861,7.84,212.34,212.21,4.2381]
[1759157627061,7.84,212.32,212.21,4.2381]
[1759157627260,440.1,212.33,212.18,10.07056223]
[1759157627565,7.84,212.32,212.18,10.07056223]
[1759157627966,7.84,212.28,212.18,5.83186223]
[1759157628266,123.46,212.27,212.18,5.83186223]
[1759157628860,4.2374,212.26,212.18,5.83186223]
[1759157629061,7.84,212.26,212.18,5.83186223]
[1759157629462,4.238,212.22,212.18,5.83186223]
[1759157629667,7.84,212.2,212.18,5.83186223]
[1759157631061,131.1,212.19,212.18,5.83186223]
[1759157631960,123.24,212.19,212.18,5.83186223]
[1759157632160,0.8204161,212.21,212.18,5.83186223]
[1759157632558,51.48,212.2,212.18,5.83186223]
[1759157632766,123.16,212.19,212.18,5.83186223]
[1759157632957,12.0784,212.2,212.13,6.36269258]
[1759157633160,112.86,212.19,212.13,6.36269258]
[1759157634064,7.62,212.25,212.14,7.33]
[1759157634258,34.76,212.24,212.14,7.33]
[1759157634458,0.8202904,212.27,212.18,4.2386]
[1759157634767,123.18,212.26,212.17,7.33]
[1759157635167,123.18,212.25,212.17,7.33]
[1759157635359,325.04016474,212.3,212.17,7.33]
[1759157635559,123.18,212.29,212.2,4.2382]
[1759157635768,329.27656474,212.3,212.2,4.2382]
[1759157636066,123.12,212.29,212.2,9.92385054]
[1759157636268,123.12,212.28,212.2,9.92385054]
[1759157637268,325.04016474,212.3,212.2,9.92385054]
[1759157637468,123.1,212.27,212.2,9.92385054]
[1759157638274,123.1,212.27,212.2,5.68565054]
[1759157638661,325.04016474,212.3,212.22,4.2378]
[1759157638860,325.04016474,212.3,212.2,13.01565054]
[1759157638861,122.9,212.29,212.2,13.01565054]
[1759157639465,122.9,212.29,212.2,17.25385054]
[1759157640376,325.04016474,212.3,212.22,4.238]
[1759157640573,122.76,212.29,212.2,13.01565054]
[1759157640770,7.62,212.35,212.21,65.928]
[1759157640969,122.76,212.34,212.21,65.928]
[1759157641175,122.76,212.33,212.25,4.2372]
[1759157641373,122.76,212.33,212.2,13.01565054]
[1759157641568,7.62,212.31,212.2,5.68565054]
[1759157641971,122.86,212.3,212.2,5.68565054]
[1759157642375,7.62,212.29,212.2,5.68565054]
[1759157642775,122.82,212.28,212.2,5.68565054]
[1759157643078,7.62,212.29,212.2,5.68565054]
[1759157643479,122.78,212.28,212.2,5.68565054]
[1759157643681,7.62,212.29,212.2,5.68565054]
[1759157643882,122.76,212.28,212.21,4.238]
[1759157644074,122.72,212.27,212.21,4.238]
[1759157644376,122.72,212.26,212.2,5.68565054]
[1759157644581,7.62,212.29,212.2,5.68565054]
[1759157644773,122.7,212.28,212.2,5.68565054]
[1759157644969,122.64,212.27,212.25,4.2374]
[1759157645174,122.64,212.26,212.25,4.2374]
[1759157645377,325.01999081,212.34,212.25,4.2374]
[1759157645572,122.64,212.33,212.25,4.2374]
[1759157645776,122.64,212.32,212.27,4.237]
[1759157646083,122.64,212.32,212.27,11.567]
[1759157646488,8.43999081,212.34,212.27,11.567]
[1759157646675,122.62,212.33,212.27,11.567]
[1759157646981,122.62,212.32,212.27,11.567]
[1759157647583,122.58,212.31,212.24,5.74036545]
[1759157647880,130.2,212.31,212.24,5.74036545]
[1759157649585,4.2366,212.29,212.24,5.74036545]
[1759157649787,7.62,212.28,212.24,5.74036545]
[1759157650083,4.2366,212.29,212.24,5.74036545]
[1759157650486,7.62,212.28,212.24,5.74036545]
[1759157650784,7.62,212.3,212.24,5.74036545]
[1759157651386,7.62,212.28,212.24,5.74036545]
[1759157651587,7.62,212.27,212.24,5.74036545]
[1759157651782,65.9315,212.2,212.06,6.40946139]
[1759157651992,446.46,212.19,212.06,6.40946139]
[1759157652183,3.32847736,212.18,212.07,7.33]
[1759157652583,122.8,212.17,212.07,7.33]
[1759157652787,3.32748833,212.16,212.07,7.33]
[1759157653185,7.56678833,212.16,212.07,7.33]
[1759157653489,122.78,212.15,212.07,7.33]
[1759157653886,122.78,212.15,212.06,6.40946139]
[1759157654188,10.90823137,212.14,212.06,6.40946139]
[1759157654489,7.58,212.14,212.06,6.40946139]
[1759157655187,122.7,212.13,212.06,6.40946139]
[1759157655592,324.12,212.19,212.1,4.2403]
[1759157655884,122.7,212.18,212.1,4.2403]
[1759157656084,122.7,212.18,212.09,7.29]
[1759157656279,324.12,212.19,212.09,7.29]
[1759157656478,126.04589548,212.18,212.09,7.29]
[1759157656684,324.12,212.19,212.09,7.29]
[1759157656885,3.32583591,212.18,212.09,7.29]
[1759157657086,122.7,212.17,212.09,7.29]
[1759157657387,122.7,212.16,212.09,7.29]
[1759157657579,122.68,212.15,212.09,7.29]
[1759157658286,122.68,212.15,212.09,11.5305]
[1759157658986,122.68,212.15,212.11,4.2402]
[1759157659287,122.68,212.15,212.12,7.29]
[1759157659494,122.64,212.14,212.07,7.29]
[1759157659785,316.54,212.19,212.08,65.9686]
[1759157659986,122.62,212.18,212.08,65.9686]
[1759157660191,122.68,212.17,212.11,7.29]
[1759157660386,122.68,212.17,212.15,7.29]
[1759157661495,7.58,212.25,212.14,8.65533406]
[1759157661696,125.92553549,212.24,212.14,8.65533406]
[1759157661998,122.6,212.24,212.14,8.65533406]
[1759157662188,126.8376,212.24,212.12,7.29]
[1759157662385,126.8376,212.24,212.12,12.67614583]
[1759157662591,122.6,212.24,212.12,12.67614583]
[1759157663101,122.6,212.24,212.11,5.41202767]
[1759157663102,7.58,212.22,212.11,5.41202767]
[1759157663397,7.58,212.2,212.11,5.41202767]
[1759157663596,127.0586,212.19,212.11,5.41202767]
[1759157663797,3.32673846,212.18,212.11,5.41202767]
[1759157664402,3.32673846,212.18,212.11,13.01202767]
[1759157664696,55.48,212.17,212.11,13.01202767]
[1759157665587,84.42,212.16,212.12,4.2398]
[1759157665894,101.72,212.17,212.12,65.9562]
[1759157666398,101.72,212.17,212.14,7.6]
[1759157667196,101.72,212.17,212.15,4.2394]
[1759157667796,7.82,212.24,212.15,65.9455]
[1759157668096,87.4,212.23,212.14,5.38614583]
[1759157668398,87.4,212.23,212.16,4.2392]
[1759157668599,87.4,212.23,212.14,5.38614583]
[1759157669099,7.82,212.24,212.14,5.38614583]
[1759157669295,4.237,212.28,212.14,5.38614583]
[1759157669498,7.82,212.3,212.17,7.6]
[1759157669794,7.82,212.28,212.17,12.92486148]
[1759157670102,7.82,212.25,212.17,5.32486148]
[1759157671196,3.32493182,212.24,212.17,5.32486148]
[1759157671792,122.5,212.23,212.17,5.32486148]
[1759157671990,122.46,212.22,212.17,5.32486148]
[1759157672194,122.46,212.22,212.17,12.92486148]
[1759157672800,122.44,212.22,212.17,12.92486148]
[1759157673194,130.26,212.22,212.17,5.32486148]
[1759157673396,7.82,212.21,212.17,5.32486148]
[1759157673596,7.82,212.19,212.17,5.32486148]
[1759157673795,130.2,212.18,212.17,5.32486148]
[1759157674992,133.52658875,212.18,212.17,5.32486148]
[1759157675192,11.14658875,212.18,212.17,5.32486148]
[1759157675398,133.52658875,212.18,212.17,5.32486148]
[1759157675701,130.18,212.18,212.17,5.32486148]
[1759157676197,7.82,212.18,212.17,5.32486148]
[1759157676397,122.32,212.18,212.17,5.32486148]
[1759157677203,130.14,212.18,212.17,5.32486148]
[1759157677805,130.14,212.18,212.11,5.41202767]
[1759157679201,7.82,212.18,212.11,5.41202767]
[1759157679402,122.2,212.17,212.11,5.41202767]
[1759157679594,7.82,212.24,212.12,7.6]
[1759157679801,122.16,212.23,212.16,4.239]
[1759157679995,7.82,212.24,212.16,4.239]
[1759157680204,122.22,212.22,212.16,4.239]
[1759157680404,122.22,212.22,212.17,4.2388]
[1759157680599,7.82,212.24,212.17,12.85619901]
[1759157680806,122.2,212.23,212.17,12.85619901]
[1759157681208,122.2,212.23,212.17,5.25619901]
[1759157682808,122.16,212.22,212.18,4.2388]
[1759157683005,122.16,212.22,212.17,5.25619901]
[1759157683206,7.82,212.21,212.17,5.25619901]
[1759157683710,122.16,212.2,212.17,5.25619901]
[1759157684610,7.82,212.21,212.17,5.25619901]
[1759157684802,122.16,212.19,212.17,5.25619901]
[1759157685505,7.82,212.18,212.11,5.41202767]
[1759157685810,7.82,212.18,212.11,9.65212767]
[1759157686508,7.82,212.18,212.11,5.41202767]
[1759157686710,122.14,212.17,212.11,5.41202767]
[1759157687311,7.82,212.25,212.11,5.41202767]
[1759157687615,7.82,212.22,212.12,4.24]
[1759157687914,3.34176072,212.21,212.11,5.41202767]
[1759157688108,122.14,212.2,212.11,5.41202767]
[1759157688312,129.96,212.19,212.11,5.41202767]
[1759157688710,7.82,212.19,212.11,5.41202767]
[1759157688911,122.14,212.18,212.11,5.41202767]
[1759157689109,122.14,212.18,212.13,4.2398]
[1759157689411,7.82,212.17,212.11,5.41202767]
[1759157689609,7.82,212.17,212.11,9.65222767]
[1759157689913,7.82,212.17,212.11,5.41202767]
[1759157690813,7.82,212.23,212.14,4.2394]
[1759157691014,125.48280727,212.22,212.14,4.2394]
[1759157691317,3.34280727,212.21,212.11,5.41202767]
[1759157691515,3.34280727,212.21,212.13,4.2396]
[1759157692313,3.34280727,212.2,212.13,4.2396]
[1759157692513,3.34280727,212.21,212.13,4.2396]
[1759157692711,3.34280727,212.2,212.13,4.2396]
[1759157692914,3.34280727,212.21,212.14,4.2394]
[1759157693213,3.34280727,212.2,212.14,4.2394]
[1759157693519,11.16280727,212.19,212.14,4.2394]
[1759157693719,122.14,212.22,212.14,11.8394]
[1759157693921,3.3479762,212.21,212.15,4.2393]
[1759157694122,3.3479762,212.2,212.15,11.7793]
[1759157694318,130.13,212.2,212.15,4.2393]
[1759157694516,11.3379762,212.19,212.15,4.2393]
[1759157694718,7.99,212.19,212.15,4.2393]
[1759157695926,122.14,212.18,212.15,4.2393]
[1759157696123,122.14,212.17,212.15,4.2393]
[1759157696920,122.14,212.17,212.13,4.2397]
[1759157697126,122.14,212.17,212.13,11.7797]
[1759157697327,122.14,212.17,212.13,7.54]
[1759157698425,122.14,212.17,212.14,4.2395]
[1759157699131,122.14,212.17,212.13,7.54]
[1759157699426,122.12,212.16,212.12,7.54]
[1759157699622,130.11,212.16,212.11,5.41202767]
[1759157699825,122.12,212.16,212.11,5.41202767]
[1759157700026,122.12,212.15,212.11,5.41202767]
[1759157700529,122.12,212.15,212.13,4.2398]
[1759157700729,122.12,212.15,212.14,7.54]
[1759157700926,321.87540995,212.26,212.14,7.54]
[1759157701127,11.34277848,212.25,212.15,65.9467]
[1759157701329,125.47277848,212.24,212.18,7.54]
[1759157701624,7.99,212.22,212.18,5.30437041]
[1759157701830,3.35183216,212.21,212.18,5.30437041]
[1759157702026,7.99,212.19,212.18,5.30437041]
[1759157702224,11.34183216,212.19,212.18,5.30437041]
[1759157702421,125.47183216,212.19,212.18,5.30437041]
[1759157702730,130.11,212.19,212.18,5.30437041]
[1759157702928,133.46248558,212.19,212.18,5.30437041]
[1759157704135,324.63,212.26,212.18,12.84437041]
[1759157704331,3.35210154,212.25,212.19,65.9343]
[1759157704531,122.1,212.24,212.19,65.9343]
[1759157704832,122.1,212.24,212.23,4.2377]
[1759157705131,125.45059981,212.24,212.18,5.30437041]
[1759157705434,316.64,212.26,212.19,73.4737]
[1759157705636,122.1,212.25,212.21,7.54]
[1759157705936,122.1,212.24,212.22,4.238]
[1759157706137,122.1,212.24,212.22,11.778]
[1759157706433,122.1,212.24,212.22,4.238]
[1759157707534,316.64,212.26,212.23,4.2376]
[1759157707735,122.08,212.24,212.23,4.2376]
[1759157707928,316.64,212.26,212.21,65.9284]
[1759157708132,7.99,212.31,212.23,7.54]
[1759157708335,125.427439,212.3,212.21,65.9284]
[1759157708636,3.347439,212.29,212.19,5.38614583]
[1759157708837,3.347439,212.28,212.19,5.38614583]
[1759157709038,3.347439,212.29,212.19,5.38614583]
[1759157709237,11.337439,212.29,212.23,4.2376]
[1759157709436,7.99,212.27,212.23,4.2376]
[1759157709737,122.06,212.26,212.23,4.2376]
[1759157709939,122.06,212.26,212.24,4.2375]
[1759157710536,7.99,212.25,212.22,4.238]
[1759157710737,7.99,212.25,212.18,12.84437041]
[1759157710932,122.06,212.24,212.18,12.84437041]
[1759157711132,122.06,212.23,212.22,4.2378]
[1759157711336,122.06,212.23,212.19,7.54]
[1759157711738,122.04,212.23,212.21,4.2381]
[1759157711938,122.04,212.24,212.22,7.54]
[1759157712138,122.04,212.24,212.23,4.2377]
[1759157712534,7.99,212.28,212.22,7.54]
[1759157712737,122.04,212.27,212.23,4.2378]
[1759157712936,7.99,212.25,212.18,5.30437041]
[1759157713136,130.03,212.25,212.18,5.30437041]
[1759157713335,7.99,212.24,212.21,4.2382]
[1759157713543,7.73,212.24,212.21,4.2382]
[1759157714439,122.04,212.25,212.18,5.30437041]
[1759157714440,129.77,212.25,212.18,5.30437041]
[1759157715146,3.34405784,212.24,212.18,5.30437041]
[1759157715341,7.73,212.23,212.18,5.30437041]
[1759157715544,7.73,212.21,212.18,5.30437041]
[1759157715749,7.73,212.19,212.18,5.30437041]
[1759157715943,129.75,212.19,212.11,5.41202767]
[1759157716148,3.34505122,212.18,212.11,5.41202767]
[1759157716743,7.73,212.17,212.11,5.41202767]
[1759157717342,122.02,212.19,212.11,5.41202767]
[1759157717343,3.34485951,212.16,212.11,5.41202767]
[1759157717540,7.73,212.17,212.11,5.41202767]
[1759157717747,7.73,212.15,212.11,5.41202767]
[1759157717942,122.02,212.14,212.11,5.41202767]
[1759157718142,122.02,212.13,212.11,5.41202767]
[1759157718454,7.73,212.19,212.11,5.41202767]
[1759157718641,3.34429406,212.18,212.11,5.41202767]
[1759157718841,122.02,212.17,212.11,5.41202767]
[1759157719247,7.73,212.16,212.11,5.41202767]
[1759157719450,129.75,212.17,212.11,5.41202767]
[1759157719850,7.73,212.15,212.11,5.41202767]
[1759157720039,7.73,212.16,212.11,5.41202767]
[1759157720538,122.02,212.17,212.11,5.41202767]
[1759157720745,7.73,212.15,212.11,5.41202767]
[1759157720949,7.73,212.16,212.11,5.41202767]
[1759157721151,129.75,212.17,212.11,5.41202767]
[1759157721347,7.73,212.15,212.11,5.41202767]
[1759157721645,129.75,212.17,212.11,5.41202767]
[1759157722353,122.02,212.16,212.11,5.41202767]
[1759157722646,122.02,212.15,212.11,5.41202767]
[1759157723355,12.96540995,212.26,212.15,65.947]
[1759157723650,12.96540995,212.26,212.13,65.9514]
[1759157723651,125.36329687,212.25,212.13,5.38614583]
[1759157723846,122.02,212.25,212.17,4.2388]
[1759157724042,3.34196869,212.24,212.17,4.2388]
[1759157724351,3.34223211,212.24,212.15,12.94183153]
[1759157724544,0.98965964,212.28,212.18,7.75]
[1759157724747,122.0,212.27,212.18,7.75]
[1759157725349,122.0,212.27,212.19,4.2386]
[1759157725550,122.0,212.27,212.18,7.75]
[1759157725752,122.0,212.27,212.23,4.2378]
[1759157726256,122.0,212.27,212.21,5.20313454]
[1759157727749,8.0,212.26,212.22,4.2378]
[1759157728550,8.0,212.26,212.23,4.2376]
[1759157728755,122.0,212.27,212.23,4.2376]
[1759157728947,0.98965964,212.28,212.23,65.9221]
[1759157729153,121.96,212.3,212.25,7.75]
[1759157729354,121.96,212.3,212.24,65.9183]
[1759157729552,325.45999081,212.34,212.25,65.9149]
[1759157729754,121.96,212.33,212.25,65.9149]
[1759157729951,324.64,212.34,212.27,73.6591]
[1759157730256,438.6,212.34,212.27,78.84908639]
[1759157730451,438.6,212.34,212.27,17.17688639]
[1759157730756,8.0,212.33,212.27,5.18998639]
[1759157730956,8.0,212.33,212.27,9.42698639]
[1759157731157,129.96,212.32,212.27,9.42698639]
[1759157731457,121.96,212.32,212.29,4.2365]
[1759157731853,316.64,212.34,212.31,4.2362]
[1759157732158,121.94,212.35,212.29,73.6533]
[1759157733160,121.94,212.35,212.31,73.647]
[1759157733359,121.94,212.35,212.31,87.7137325]
[1759157733560,121.94,212.35,212.34,4.2356]
[1759157734354,8.0,212.34,212.31,14.0667325]
[1759157734551,121.94,212.35,212.29,65.9007]
[1759157735262,121.94,212.35,212.29,65.9031]
[1759157735558,121.94,212.35,212.3,65.9002]
[1759157735755,121.94,212.35,212.31,7.75]
[1759157735956,8.0,212.43,212.33,65.8904]
[1759157736261,121.9,212.42,212.35,65.8839]
[1759157736764,121.9,212.42,212.35,4.2353]
[1759157737159,121.9,212.42,212.33,5.17140979]
[1759157737457,121.9,212.42,212.37,4.235]
[1759157737658,121.9,212.42,212.29,74.55796768]
[1759157737659,8.0,212.4,212.26,7.75]
[1759157737859,121.88,212.39,212.26,7.75]
[1759157738057,121.88,212.39,212.31,4.2362]
[1759157738558,121.88,212.39,212.27,5.18998639]
[1759157738559,8.0,212.38,212.27,5.18998639]
[1759157739660,8.0,212.38,212.29,4.2366]
[1759157740054,8.0,212.38,212.29,13.86188062]
[1759157740362,82.22,212.37,212.27,5.18998639]
[1759157741258,82.22,212.37,212.28,4.2367]
[1759157741464,8.0,212.36,212.28,4.2367]
[1759157741967,8.0,212.36,212.28,65.9067]
[1759157742157,75.46,212.36,212.28,65.9067]
[1759157742561,8.0,212.42,212.28,65.9067]
[1759157742757,121.84,212.38,212.32,4.236]
[1759157742965,121.84,212.38,212.32,9.54354701]
[1759157743554,8.0,212.42,212.32,9.54354701]
[1759157743763,125.14131024,212.41,212.33,4.2356]
[1759157744068,121.82,212.41,212.33,4.2356]
[1759157745370,121.82,212.41,212.32,5.30754701]
[1759157745866,8.0,212.4,212.32,5.30754701]
[1759157747667,12.2346,212.4,212.32,5.30754701]
[1759157748366,8.0,212.38,212.32,5.30754701]
[1759157748557,8.0,212.36,212.32,5.30754701]
[1759157748761,121.78,212.35,212.32,5.30754701]
[1759157748964,121.78,212.34,212.32,5.30754701]
[1759157749365,121.78,212.35,212.32,5.30754701]
[1759157749861,8.0,212.34,212.32,5.30754701]
[1759157751064,78.68,212.34,212.32,5.30754701]
[1759157751762,70.68,212.34,212.32,5.30754701]
[1759157751963,8.0,212.33,212.32,5.30754701]
[1759157752864,5.23540995,212.47,212.43,65.8602]
[1759157753066,8.0,212.55,212.47,65.848]
[1759157753268,122.04,212.57,212.5,65.8375]
[1759157753465,324.42,212.6,212.54,65.8257]
[1759157753672,316.42,212.6,212.54,14.27435286]
[1759157753869,316.42,212.6,212.5,5.28400169]
[1759157754265,7.68,212.59,212.5,19.16042107]
[1759157754468,7.68,212.59,212.5,5.28400169]
[1759157755380,122.12,212.58,212.5,5.28400169]
[1759157756976,122.12,212.58,212.5,19.53848714]
[1759157757181,122.12,212.58,212.5,5.28400169]
[1759157757575,7.68,212.57,212.5,5.28400169]
[1759157757772,7.68,212.57,212.43,5.28546557]
[1759157757979,7.68,212.55,212.43,5.28546557]
[1759157758473,77.04,212.54,212.44,7.85]
[1759157758880,7.68,212.55,212.46,4.2332]
[1759157759081,92.04,212.54,212.44,7.85]
[1759157759381,7.68,212.53,212.43,5.28546557]
[1759157759578,7.68,212.53,212.45,4.2334]
[1759157759778,100.82,212.52,212.45,4.2334]
[1759157760179,100.82,212.52,212.43,5.28546557]
[1759157760380,7.68,212.51,212.43,5.28546557]
[1759157760674,121.92,212.5,212.43,5.28546557]
[1759157761582,121.92,212.5,212.44,4.2335]
[1759157761776,7.68,212.51,212.43,71.14526557]
[1759157761982,74.92,212.5,212.43,85.12078865]
[1759157762279,7.68,212.51,212.44,65.8558]
[1759157762483,65.54,212.5,212.46,7.85]
[1759157762784,65.54,212.5,212.43,85.12098865]
[1759157763785,65.54,212.5,212.45,4.2334]
[1759157764082,65.54,212.5,212.45,7.85]
[1759157764778,65.54,212.5,212.44,65.8565]
[1759157764978,7.68,212.49,212.45,4.2333]
[1759157765182,7.68,212.49,212.43,19.26098865]
[1759157766284,7.68,212.49,212.3,7.85]
[1759157766483,131.3802,212.5,212.3,7.85]
[1759157766484,66.5126828,212.5,212.31,65.8972]
[1759157766677,10.92279394,212.49,212.33,7.85]
[1759157766882,7.68,212.47,212.35,65.8846]
[1759157767082,7.68,212.47,212.36,7.85]
[1759157767284,7.68,212.47,212.36,22.31854397]
[1759157767586,7.68,212.47,212.36,7.85]
[1759157767983,109.44,212.46,212.36,7.85]
[1759157768184,0.9726828,212.5,212.38,65.8742]
[1759157768391,62.72,212.52,212.44,7.85]
[1759157768686,122.04,212.54,212.45,65.8539]
[1759157768875,122.04,212.54,212.49,4.2326]
[1759157769079,122.08,212.56,212.48,65.8451]
[1759157769388,122.08,212.56,212.47,65.848]
[1759157769684,122.06,212.59,212.52,65.832]
[1759157769885,122.06,212.59,212.5,5.40359779]
[1759157770083,122.06,212.59,212.54,4.2316]
[1759157770276,129.74,212.59,212.54,4.2316]
[1759157770484,129.74,212.59,212.53,65.8294]
[1759157770785,7.68,212.64,212.54,65.8259]
[1759157770982,438.44,212.6,212.54,65.8259]
[1759157771194,438.44,212.6,212.54,4.2316]
[1759157771589,438.44,212.6,212.53,65.8295]
[1759157771790,438.44,212.6,212.5,5.40359779]
[1759157771980,438.44,212.6,212.51,65.8342]
[1759157772291,438.44,212.6,212.56,4.2312]
[1759157772589,446.12,212.6,212.56,4.2312]
[1759157772785,7.68,212.59,212.55,5.22430453]
[1759157773787,7.68,212.59,212.55,9.45570453]
[1759157774689,7.59,212.59,212.55,5.22430453]
[1759157774894,122.02,212.6,212.57,65.8172]
[1759157775091,122.02,212.6,212.57,87.27405317]
[1759157775395,122.02,212.6,212.55,5.22430453]
[1759157775695,129.61,212.6,212.55,5.22430453]
[1759157775891,121.78,212.6,212.58,4.2308]
[1759157776294,121.72,212.6,212.58,4.2308]
[1759157777193,7.59,212.64,212.58,4.2308]
[1759157777392,7.59,212.62,212.58,4.2308]
[1759157779193,121.66,212.61,212.58,11.8708]
[1759157779393,8.40871758,212.67,212.58,4.2308]
[1759157779595,124.88466917,212.66,212.58,4.2308]
[1759157779796,3.22466917,212.65,212.58,4.2308]
[1759157780091,7.59,212.64,212.55,5.22430453]
[1759157780494,121.66,212.63,212.55,5.22430453]
[1759157781091,121.66,212.62,212.58,4.2308]
[1759157781295,129.25,212.62,212.58,4.2308]
[1759157781492,129.25,212.62,212.6,4.2304]
[1759157781692,7.59,212.66,212.6,4.2304]
[1759157781985,7.59,212.64,212.6,4.2304]
[1759157782190,53.44,212.63,212.6,4.2304]
[1759157782391,7.59,212.64,212.62,4.2301]
[1759157782586,7.59,212.71,212.61,5.20845896]
[1759157782792,124.86307273,212.7,212.61,5.20845896]
[1759157782996,3.22307273,212.69,212.61,5.20845896]
[1759157783195,121.64,212.7,212.61,5.20845896]
[1759157783599,121.64,212.7,212.64,4.2296]
[1759157783798,10.81225602,212.69,212.61,5.20845896]
[1759157783998,3.22249321,212.68,212.61,5.20845896]
[1759157784600,3.22249321,212.68,212.61,9.43855896]
[1759157784798,3.22249321,212.68,212.61,5.20845896]
[1759157784799,7.4,212.67,212.61,5.20845896]
[1759157785491,3.22354426,212.66,212.61,5.20845896]
[1759157786002,7.4,212.68,212.61,5.20845896]
[1759157786200,3.22354426,212.67,212.61,5.20845896]
[1759157786502,7.4,212.66,212.61,5.20845896]
[1759157786699,7.4,212.64,212.61,5.20845896]
[1759157786894,7.4,212.62,212.61,5.20845896]
[1759157787198,7.4,212.62,212.55,5.22430453]
[1759157787399,7.4,212.62,212.49,73.4509]
[1759157787594,7.4,212.68,212.57,71.18152836]
[1759157787797,124.84591476,212.67,212.58,12.54444535]
[1759157787997,121.62,212.67,212.6,4.2304]
[1759157788791,121.62,212.67,212.61,4.2301]
[1759157788991,7.4,212.68,212.61,4.2301]
[1759157789195,122.24,212.67,212.61,4.2301]
[1759157789705,122.22,212.66,212.61,4.2301]
[1759157789901,122.22,212.66,212.59,65.81]
[1759157790104,122.22,212.66,212.59,73.42]
[1759157790607,7.4,212.69,212.62,4.2299]
[1759157790905,125.42667972,212.68,212.62,4.2299]
[1759157791203,122.2,212.68,212.63,4.2297]
[1759157791405,122.12,212.67,212.6,65.8077]
[1759157791798,7.4,212.69,212.65,4.2293]
[1759157792101,122.08,212.68,212.62,65.7995]
[1759157792301,122.06,212.67,212.61,12.97472836]
[1759157792712,122.06,212.67,212.61,73.4146]
[1759157793611,122.06,212.67,212.65,4.2293]
[1759157795719,122.06,212.67,212.64,4.89473746]
[1759157795920,7.4,212.66,212.64,4.89473746]
[1759157796215,122.06,212.67,212.64,4.89473746]
[1759157796420,7.4,212.65,212.64,4.89473746]
[1759157797014,121.76,212.65,212.64,4.89473746]
[1759157797518,3.24149904,212.65,212.64,9.12423746]
[1759157797723,121.7,212.65,212.64,9.12423746]
[1759157798015,121.7,212.65,212.64,4.89473746]
[1759157798413,5.23540995,212.73,212.64,4.89473746]
[1759157798614,132.34101293,212.72,212.64,4.89473746]
[1759157798816,7.4,212.7,212.64,4.89473746]
[1759157799009,7.4,212.68,212.64,4.89473746]
[1759157799210,132.28101293,212.67,212.64,4.89473746]
[1759157799518,3.24101293,212.66,212.64,4.89473746]
[1759157800120,3.24101293,212.66,212.59,71.17552836]
[1759157800316,3.24101293,212.66,212.61,4.2303]
[1759157800715,3.24101293,212.66,212.65,4.2295]
[1759157800910,13.92108614,212.76,212.67,65.7865]
[1759157801112,135.96108614,212.76,212.68,12.97472836]
[1759157802118,13.92108614,212.76,212.75,7.61]
[1759157802420,135.90108614,212.76,212.75,7.61]
[1759157802810,135.90108614,212.76,212.72,9.59272836]
[1759157803010,13.92108614,212.76,212.73,7.61]
[1759157803320,13.92108614,212.76,212.69,65.78]
[1759157803321,135.90108614,212.76,212.69,5.36472836]
[1759157803515,13.92108614,212.76,212.7,7.61]